fUST/lending_fUST_20240801
["ID","MTS","AMOUNT","RATE_DAILY","PERIOD"]
[333790651,1722507038448,-1661.7868925,0.000135,2]
[333790652,1722507038457,-153.0,0.00013507,2]
[333790653,1722507038466,-300.0,0.00013589,2]
[333790655,1722507038475,-300.0,0.00013589,2]
[333790658,1722507038485,-50757.1126461,0.0001359,2]
[333790660,1722507038494,-50757.1126461,0.0001359,2]
[333790662,1722507038503,-2705.34158974,0.00013598,5]
[333790663,1722507038513,-2280.01209544,0.00013598,2]
[333790665,1722507038522,-2000.0,0.00013598,2]
[333790667,1722507038533,-88888.0,0.00013598,2]
[333790669,1722507038542,-306.7359293,0.000136,2]
[333790671,1722507038552,-51170.53068235,0.000136,2]
[333790673,1722507038561,-153.0,0.000136,2]
[333790675,1722507038571,-150.112233,0.000136,2]
[333790676,1722507038580,-151.0,0.000136,2]
[333790678,1722507038588,-155.988796,0.000136,2]
[333790679,1722507038598,-155.988796,0.000136,2]
[333790680,1722507038608,-322.882112,0.000136,2]
[333790681,1722507038617,-155.0,0.0001368,2]
[333790682,1722507038626,-50757.1126461,0.00013687,2]
[333790683,1722507038636,-4839.87,0.00013687,2]
[333790684,1722507038646,-4839.87,0.00013687,2]
[333790685,1722507038655,-4839.87,0.00013687,2]
[333790686,1722507038665,-151.0,0.00013687,2]
[333790687,1722507038674,-155.988796,0.00013687,2]
[333790688,1722507038684,-155.988796,0.00013687,2]
[333790689,1722507038693,-322.882112,0.00013687,2]
[333790690,1722507038703,-7969.36638871,0.00013688,2]
[333790691,1722507038713,-154.70605488,0.00013688,2]
[333790692,1722507038722,-151.0,0.00013688,2]
[333790693,1722507038731,-201.15881,0.00013688,2]
[333790694,1722507038741,-201.15881,0.00013688,2]
[333790695,1722507038751,-438.655399,0.00013688,2]
[333790696,1722507038760,-438.655399,0.00013688,2]
[333790697,1722507038773,-151.0,0.00013688,2]
[333790698,1722507038782,-151.0,0.00013688,2]
[333790699,1722507038792,-151.0,0.00013688,2]
[333790700,1722507038804,-814.403794,0.00013688,2]
[333790701,1722507038813,-814.403794,0.00013688,2]
[333790702,1722507038823,-341.254348,0.00013688,2]
[333790703,1722507038832,-341.254348,0.00013688,2]
[333790704,1722507038841,-151.0,0.00013688,2]
[333790705,1722507038851,-151.0,0.00013688,2]
[333790706,1722507038860,-151.0,0.00013688,2]
[333790707,1722507038869,-155.988796,0.00013688,2]
[333790708,1722507038879,-155.988796,0.00013688,2]
[333790709,1722507038888,-322.882112,0.00013688,2]
[333790710,1722507038898,-152271.337938,0.00013688,2]
[333790711,1722507038908,-151.0,0.00013689,2]
[333790712,1722507038917,-151.0,0.00013689,2]
[333790713,1722507038927,-190.890601,0.00013689,2]
[333790714,1722507038938,-151.0,0.00013689,2]
[333790715,1722507038952,-151.0,0.00013689,2]
[333790716,1722507038962,-159.142725,0.00013689,2]
[333790717,1722507038971,-159.142725,0.00013689,2]
[333790718,1722507038980,-201.15881,0.00013689,2]
[333790719,1722507038993,-201.15881,0.00013689,2]
[333790720,1722507039003,-438.655399,0.00013689,2]
[333790721,1722507039018,-438.655399,0.00013689,2]
[333790722,1722507039027,-151.0,0.00013689,2]
[333790723,1722507039036,-151.0,0.00013689,2]
[333790724,1722507039047,-151.0,0.00013689,2]
[333790725,1722507039059,-814.403794,0.00013689,2]
[333790726,1722507039068,-814.403794,0.00013689,2]
[333790727,1722507039078,-341.254348,0.00013689,2]
[333790728,1722507039088,-341.254348,0.00013689,2]
[333790729,1722507039101,-151.0,0.00013689,2]
[333790730,1722507039112,-151.0,0.00013689,2]
[333790731,1722507039121,-4839.87,0.00013696,2]
[333790732,1722507039131,-20060.72399366,0.00013697,5]
[333790733,1722507039140,-4839.87,0.00013697,2]
[333790734,1722507039150,-4839.87,0.00013697,2]
[333790735,1722507039159,-4839.87,0.00013697,2]
[333790736,1722507039169,-151.0,0.00013698,2]
[333790737,1722507039179,-500.0,0.00013698,2]
[333790738,1722507039188,-500.0,0.00013698,2]
[333790739,1722507039200,-500.0,0.00013698,2]
[333790740,1722507039211,-500.0,0.00013698,2]
[333790741,1722507039222,-631.1,0.00013698,2]
[333790742,1722507039232,-500.0,0.00013698,2]
[333790743,1722507039242,-500.0,0.00013698,2]
[333790744,1722507039252,-500.0,0.00013698,2]
[333790745,1722507039265,-500.0,0.00013698,2]
[333790746,1722507039275,-500.0,0.00013698,2]
[333790747,1722507039285,-500.0,0.00013698,2]
[333790748,1722507039296,-500.0,0.00013698,2]
[333790749,1722507039306,-500.0,0.00013698,2]
[333790750,1722507039316,-588.78,0.00013698,2]
[333790751,1722507039325,-612.90227652,0.00013698,2]
[333790752,1722507039334,-500.0,0.00013698,2]
[333790753,1722507039344,-500.0,0.00013698,2]
[333790754,1722507039354,-500.0,0.00013698,2]
[333790755,1722507039363,-501.7600935,0.00013698,2]
[333790756,1722507039372,-500.0,0.00013698,2]
[333790757,1722507039381,-500.0,0.00013698,2]
[333790758,1722507039391,-500.0,0.00013698,2]
[333790759,1722507039400,-500.0,0.00013698,2]
[333790760,1722507039410,-312.89728773,0.00013698,2]
[333790761,1722507039420,-500.0,0.00013698,2]
[333790762,1722507039429,-500.0,0.00013698,2]
[333790763,1722507039438,-500.0,0.00013698,2]
[333790764,1722507039448,-500.0,0.00013698,2]
[333790765,1722507039457,-500.0,0.00013698,2]
[333790766,1722507039467,-500.0,0.00013698,2]
[333790767,1722507039476,-500.0,0.00013698,2]
[333790768,1722507039486,-500.0,0.00013698,2]
[333790769,1722507039496,-500.0,0.00013698,2]
[333790770,1722507039505,-518.24577644,0.00013698,2]
[333790771,1722507039515,-500.0,0.00013698,2]
[333790772,1722507039524,-550.0,0.00013698,2]
[333790773,1722507039533,-151.0,0.00013698,2]
[333790774,1722507039542,-270.542061,0.00013698,2]
[333790775,1722507039552,-680.05,0.00013698,2]
[333790776,1722507039562,-325.26670629,0.00013698,2]
[333790777,1722507039572,-500.0,0.00013698,2]
[333790778,1722507039584,-500.0,0.00013698,2]
[333790779,1722507039593,-500.0,0.00013698,2]
[333790780,1722507039604,-500.0,0.00013698,2]
[333790781,1722507039615,-500.0,0.00013698,2]
[333790782,1722507039625,-500.0,0.00013698,2]
[333790783,1722507039634,-500.0,0.00013698,2]
[333790784,1722507039643,-504.43,0.00013698,2]
[333790785,1722507039653,-500.0,0.00013698,2]
[333790786,1722507039664,-553.81,0.00013698,2]
[333790787,1722507039674,-777.01,0.00013698,2]
[333790788,1722507039683,-500.0,0.00013698,2]
[333790789,1722507039694,-500.0,0.00013698,2]
[333790790,1722507039706,-500.0,0.00013698,2]
[333790791,1722507039716,-500.0,0.00013698,2]
[333790792,1722507039725,-500.0,0.00013698,2]
[333790793,1722507039735,-151.0,0.00013698,2]
[333790794,1722507039745,-500.0,0.00013698,2]
[333790795,1722507039754,-151.0,0.00013698,2]
[333790796,1722507039765,-151.0,0.00013698,2]
[333790797,1722507039776,-500.0,0.00013698,2]
[333790798,1722507039785,-817.82,0.00013698,2]
[333790799,1722507039796,-151.0,0.00013698,2]
[333790800,1722507039808,-500.0,0.00013698,2]
[333790802,1722507039817,-152.237788,0.00013698,2]
[333790804,1722507039827,-500.0,0.00013698,2]
[333790806,1722507039836,-500.0,0.00013698,2]
[333790807,1722507039846,-505.96664735,0.00013698,2]
[333790809,1722507039856,-500.0,0.00013698,2]
[333790811,1722507039867,-151.0,0.00013698,2]
[333790813,1722507039876,-151.0,0.00013698,2]
[333790815,1722507039886,-151.0,0.00013698,2]
[333790817,1722507039896,-151.0,0.00013698,2]
[333790818,1722507039907,-500.0,0.00013698,2]
[333790819,1722507039918,-151.0,0.00013698,2]
[333790820,1722507039929,-500.0,0.00013698,2]
[333790821,1722507039939,-151.0,0.00013698,2]
[333790824,1722507039950,-151.0,0.00013698,2]
[333790826,1722507039961,-151.0,0.00013698,2]
[333790827,1722507039971,-500.0,0.00013698,2]
[333790829,1722507039981,-614.21,0.00013698,2]
[333790831,1722507039991,-553.04,0.00013698,2]
[333790833,1722507040002,-151.0,0.00013698,2]
[333790834,1722507040016,-151.0,0.00013698,2]
[333790836,1722507040025,-151.0,0.00013698,2]
[333790838,1722507040035,-151.0,0.00013698,2]
[333790840,1722507040045,-151.0,0.00013698,2]
[333790842,1722507040055,-500.0,0.00013698,2]
[333790844,1722507040066,-1121.21,0.00013698,2]
[333790846,1722507040077,-543.09,0.00013698,2]
[333790847,1722507040090,-151.0,0.00013698,2]
[333790849,1722507040101,-151.0,0.00013698,2]
[333790851,1722507040111,-151.0,0.00013698,2]
[333790853,1722507040121,-151.0,0.00013698,2]
[333790854,1722507040131,-151.0,0.00013698,2]
[333790855,1722507040140,-151.0,0.00013698,2]
[333790856,1722507040150,-500.0,0.00013698,2]
[333790857,1722507040159,-151.0,0.00013698,2]
[333790858,1722507040169,-151.0,0.00013698,2]
[333790859,1722507040179,-500.0,0.00013698,2]
[333790860,1722507040188,-151.0,0.00013698,2]
[333790861,1722507040197,-151.0,0.00013698,2]
[333790863,1722507040207,-151.0,0.00013698,2]
[333790865,1722507040216,-151.0,0.00013698,2]
[333790867,1722507040226,-151.0,0.00013698,2]
[333790869,1722507040235,-1161.91,0.00013698,2]
[333790870,1722507040245,-151.0,0.00013698,2]
[333790871,1722507040254,-151.0,0.00013698,2]
[333790872,1722507040264,-151.0,0.00013698,2]
[333790874,1722507040273,-500.0,0.00013698,2]
[333790875,1722507040283,-500.0,0.00013698,2]
[333790876,1722507040293,-500.0,0.00013698,2]
[333790878,1722507040302,-152.346379,0.00013698,2]
[333790879,1722507040312,-500.0,0.00013698,2]
[333790880,1722507040323,-500.0,0.00013698,2]
[333790881,1722507040332,-500.0,0.00013698,2]
[333790882,1722507040342,-820.18,0.00013698,2]
[333790883,1722507040352,-298.588884,0.00013698,2]
[333790884,1722507040363,-500.0,0.00013698,2]
[333790885,1722507040374,-159.142725,0.00013698,2]
[333790886,1722507040386,-159.142725,0.00013698,2]
[333790887,1722507040398,-159.142725,0.00013698,2]
[333790888,1722507040409,-159.142725,0.00013698,2]
[333790889,1722507040420,-500.0,0.00013698,2]
[333790890,1722507040522,-500.0,0.00013698,2]
[333790891,1722507040533,-159.142725,0.00013698,2]
[333790892,1722507040543,-159.142725,0.00013698,2]
[333790893,1722507040552,-159.142725,0.00013698,2]
[333790894,1722507040562,-159.142725,0.00013698,2]
[333790895,1722507040571,-4839.87,0.00013698,2]
[333790896,1722507040581,-201.15881,0.00013698,2]
[333790897,1722507040590,-201.15881,0.00013698,2]
[333790898,1722507040599,-201.15881,0.00013698,2]
[333790899,1722507040609,-201.15881,0.00013698,2]
[333790900,1722507040618,-967.16,0.00013698,2]
[333790901,1722507040627,-201.15881,0.00013698,2]
[333790902,1722507040636,-201.15881,0.00013698,2]
[333790903,1722507040646,-201.15881,0.00013698,2]
[333790904,1722507040655,-201.15881,0.00013698,2]
[333790905,1722507040664,-626.21,0.00013698,2]
[333790906,1722507040674,-2558.97,0.00013698,2]
[333790907,1722507040684,-792.65,0.00013698,2]
[333790908,1722507040693,-558.17,0.00013698,2]
[333790909,1722507040703,-500.0,0.00013698,2]
[333790910,1722507040713,-3794.29,0.00013698,2]
[333790911,1722507040723,-1211.39,0.00013698,2]
[333790912,1722507040732,-659.58,0.00013698,2]
[333790913,1722507040742,-5118.49,0.00013698,2]
[333790914,1722507040751,-500.0,0.00013698,2]
[333790915,1722507040761,-1557.89,0.00013698,2]
[333790916,1722507040771,-765.53,0.00013698,2]
[333790917,1722507040781,-500.0,0.00013698,2]
[333790918,1722507040791,-500.0,0.00013698,2]
[333790919,1722507040800,-500.0,0.00013698,2]
[333790920,1722507040810,-438.655399,0.00013698,2]
[333790921,1722507040820,-438.655399,0.00013698,2]
[333790922,1722507040829,-438.655399,0.00013698,2]
[333790923,1722507040839,-438.655399,0.00013698,2]
[333790924,1722507040849,-500.0,0.00013698,2]
[333790925,1722507040859,-500.0,0.00013698,2]
[333790926,1722507040868,-438.655399,0.00013698,2]
[333790927,1722507040877,-438.655399,0.00013698,2]
[333790928,1722507040887,-438.655399,0.00013698,2]
[333790929,1722507040896,-438.655399,0.00013698,2]
[333790930,1722507040905,-4506.34,0.00013698,2]
[333790931,1722507040915,-500.0,0.00013698,2]
[333790932,1722507040924,-745.35,0.00013698,2]
[333790933,1722507040935,-151.0,0.00013698,2]
[333790934,1722507040944,-151.0,0.00013698,2]
[333790935,1722507040954,-151.0,0.00013698,2]
[333790936,1722507040963,-151.0,0.00013698,2]
[333790937,1722507040972,-151.0,0.00013698,2]
[333790938,1722507040982,-151.0,0.00013698,2]
[333790939,1722507040991,-151.0,0.00013698,2]
[333790940,1722507041001,-622.50676717,0.00013698,2]
[333790941,1722507041014,-257.960681,0.00013698,2]
[333790942,1722507041023,-500.0,0.00013698,2]
[333790943,1722507041033,-934.31,0.00013698,2]
[333790944,1722507041042,-868.75,0.00013698,2]
[333790945,1722507041051,-500.0,0.00013698,2]
[333790946,1722507041061,-571.77,0.00013698,2]
[333790947,1722507041070,-151.0,0.00013698,2]
[333790948,1722507041079,-151.0,0.00013698,2]
[333790949,1722507041090,-151.0,0.00013698,2]
[333790950,1722507041099,-500.0,0.00013698,2]
[333790951,1722507041109,-500.0,0.00013698,2]
[333790952,1722507041118,-21.43306379,0.00013698,2]
[333790953,1722507041135,-478.56693621,0.00013698,2]
[333790954,1722507041144,-318.60584137,0.00013698,2]
[333790955,1722507041289,-181.39415863,0.00013698,2]
[333790956,1722507041299,-500.0,0.00013698,2]
[333790957,1722507041307,-500.0,0.00013698,2]
[333790958,1722507041317,-500.0,0.00013698,2]
[333790959,1722507041327,-500.82514499,0.00013698,2]
[333790960,1722507041336,-523.75185787,0.00013698,2]
[333790961,1722507041345,-500.0,0.00013698,2]
[333790962,1722507041354,-500.0,0.00013698,2]
[333790963,1722507041363,-732.88,0.00013698,2]
[333790964,1722507041372,-500.0,0.00013698,2]
[333790965,1722507041382,-202.56169854,0.00013698,2]
[333790966,1722507041392,-1287.0,0.00013698,2]
[333790967,1722507041403,-500.0,0.00013698,2]
[333790968,1722507041415,-500.0,0.00013698,2]
[333790969,1722507041427,-1625.36,0.00013698,2]
[333790970,1722507041438,-500.0,0.00013698,2]
[333790971,1722507041447,-1343.57,0.00013698,2]
[333790972,1722507041456,-1112.32,0.00013698,2]
[333790973,1722507041466,-4361.26,0.00013698,2]
[333790974,1722507041476,-574.73,0.00013698,2]
[333790975,1722507041487,-500.0,0.00013698,2]
[333790976,1722507041497,-500.0,0.00013698,2]
[333790977,1722507041508,-3077.51,0.00013698,2]
[333790978,1722507041520,-500.0,0.00013698,2]
[333790979,1722507041530,-500.0,0.00013698,2]
[333790980,1722507041540,-814.403794,0.00013698,2]
[333790981,1722507041549,-814.403794,0.00013698,2]
[333790982,1722507041558,-814.403794,0.00013698,2]
[333790983,1722507041567,-814.403794,0.00013698,2]
[333790984,1722507041575,-814.403794,0.00013698,2]
[333790985,1722507041585,-814.403794,0.00013698,2]
[333790986,1722507041594,-814.403794,0.00013698,2]
[333790987,1722507041604,-814.403794,0.00013698,2]
[333790988,1722507041613,-814.403794,0.00013698,2]
[333790989,1722507041622,-500.0,0.00013698,2]
[333790990,1722507041632,-814.403794,0.00013698,2]
[333790991,1722507041641,-1659.24,0.00013698,2]
[333790992,1722507041650,-697.67,0.00013698,2]
[333790993,1722507041660,-500.0,0.00013698,2]
[333790994,1722507041669,-500.0,0.00013698,2]
[333790995,1722507041678,-341.254348,0.00013698,2]
[333790996,1722507041687,-341.254348,0.00013698,2]
[333790997,1722507041697,-788.58,0.00013698,2]
[333790998,1722507041706,-341.254348,0.00013698,2]
[333790999,1722507041716,-341.254348,0.00013698,2]
[333791000,1722507041725,-341.254348,0.00013698,2]
[333791001,1722507041734,-500.0,0.00013698,2]
[333791002,1722507041743,-341.254348,0.00013698,2]
[333791003,1722507041753,-341.254348,0.00013698,2]
[333791004,1722507041762,-341.254348,0.00013698,2]
[333791005,1722507041773,-1049.01,0.00013698,2]
[333791006,1722507041783,-504.61701673,0.00013698,2]
[333791007,1722507041792,-341.254348,0.00013698,2]
[333791008,1722507041802,-341.254348,0.00013698,2]
[333791009,1722507041810,-151.0,0.00013698,2]
[333791010,1722507041820,-151.0,0.00013698,2]
[333791011,1722507041830,-151.0,0.00013698,2]
[333791012,1722507041840,-151.0,0.00013698,2]
[333791013,1722507041849,-151.0,0.00013698,2]
[333791014,1722507041860,-151.0,0.00013698,2]
[333791015,1722507041870,-272.715632,0.00013698,2]
[333791016,1722507041880,-500.0,0.00013698,2]
[333791017,1722507041889,-882.01,0.00013698,2]
[333791018,1722507041899,-500.0,0.00013698,2]
[333791019,1722507041909,-794.31,0.00013698,2]
[333791020,1722507041919,-500.0,0.00013698,2]
[333791021,1722507041929,-514.21,0.00013698,2]
[333791022,1722507041939,-500.0,0.00013698,2]
[333791023,1722507041948,-500.0,0.00013698,2]
[333791024,1722507041958,-1138.16,0.00013698,2]
[333791025,1722507041968,-583.07,0.00013698,2]
[333791026,1722507041977,-506.56582203,0.00013698,2]
[333791027,1722507041987,-155.988796,0.00013698,2]
[333791028,1722507041996,-155.988796,0.00013698,2]
[333791029,1722507042007,-2046.54,0.00013698,2]
[333791030,1722507042022,-2046.54,0.00013698,2]
[333791031,1722507042032,-2046.54,0.00013698,2]
[333791032,1722507042042,-155.988796,0.00013698,2]
[333791033,1722507042053,-2046.54,0.00013698,2]
[333791034,1722507042062,-155.988796,0.00013698,2]
[333791035,1722507042072,-155.988796,0.00013698,2]
[333791036,1722507042083,-2046.54,0.00013698,2]
[333791037,1722507042092,-2046.54,0.00013698,2]
[333791038,1722507042101,-2046.54,0.00013698,2]
[333791039,1722507042111,-2046.54,0.00013698,2]
[333791040,1722507042120,-155.988796,0.00013698,2]
[333791041,1722507042131,-155.988796,0.00013698,2]
[333791042,1722507042141,-1241.88,0.00013698,2]
[333791043,1722507042151,-155.988796,0.00013698,2]
[333791044,1722507042161,-155.988796,0.00013698,2]
[333791045,1722507042170,-155.988796,0.00013698,2]
[333791046,1722507042179,-500.0,0.00013698,2]
[333791047,1722507042188,-618.75,0.00013698,2]
[333791048,1722507042198,-593.76,0.00013698,2]
[333791049,1722507042207,-2046.54,0.00013698,2]
[333791050,1722507042216,-2046.54,0.00013698,2]
[333791051,1722507042226,-2046.54,0.00013698,2]
[333791052,1722507042235,-2046.54,0.00013698,2]
[333791053,1722507042244,-2046.54,0.00013698,2]
[333791054,1722507042253,-2046.54,0.00013698,2]
[333791055,1722507042262,-2046.54,0.00013698,2]
[333791056,1722507042278,-2046.54,0.00013698,2]
[333791057,1722507042288,-500.0,0.00013698,2]
[333791058,1722507042297,-2260.78,0.00013698,2]
[333791059,1722507042307,-1110.56,0.00013698,2]
[333791060,1722507042317,-500.0,0.00013698,2]
[333791061,1722507042327,-1376.35818983,0.00013698,2]
[333791130,1722507043318,-1562.16181017,0.00013698,2]
[333791132,1722507043327,-584.92,0.00013698,2]
[333791134,1722507043336,-500.0,0.00013698,2]
[333791136,1722507043345,-500.0,0.00013698,2]
[333791138,1722507043355,-500.0,0.00013698,2]
[333791140,1722507043365,-322.882112,0.00013698,2]
[333791142,1722507043374,-757.78,0.00013698,2]
[333791144,1722507043383,-322.882112,0.00013698,2]
[333791145,1722507043392,-322.882112,0.00013698,2]
[333791146,1722507043401,-322.882112,0.00013698,2]
[333791147,1722507043410,-322.882112,0.00013698,2]
[333791148,1722507043419,-2382.1725,0.00013699,2]
[333791149,1722507043428,-2382.1725,0.00013699,2]
[333791150,1722507043437,-2382.1725,0.00013699,2]
[333791151,1722507043446,-2382.1725,0.00013699,2]
[333791152,1722507043455,-2382.1725,0.00013699,2]
[333791153,1722507043464,-2382.1725,0.00013699,2]
[333791154,1722507043473,-2382.1725,0.00013699,2]
[333791155,1722507043585,-2382.1725,0.00013699,2]
[333791156,1722507043594,-247.910206,0.00013699,2]
[333791157,1722507043604,-151.0,0.00013699,2]
[333791158,1722507043613,-240.39431555,0.00013699,2]
[333791159,1722507043622,-151.0,0.00013699,2]
[333791160,1722507043631,-151.0,0.00013699,2]
[333791161,1722507043641,-159.142725,0.00013699,2]
[333791162,1722507043650,-159.142725,0.00013699,2]
[333791163,1722507043659,-201.15881,0.00013699,2]
[333791164,1722507043668,-201.15881,0.00013699,2]
[333791165,1722507043677,-438.655399,0.00013699,2]
[333791166,1722507043686,-438.655399,0.00013699,2]
[333791167,1722507043696,-150.112233,0.000137,2]
[333791168,1722507043705,-500.0,0.00013731,2]
[333791169,1722507043714,-1410.0,0.00013765,2]
[333791170,1722507043724,-2046.54,0.00013797,2]
[333791171,1722507043733,-2046.54,0.00013797,2]
[333791172,1722507043742,-151.0,0.00013798,2]
[333791173,1722507043751,-151.0,0.00013798,2]
[333791174,1722507043761,-159.142725,0.00013798,2]
[333791175,1722507043771,-159.142725,0.00013798,2]
[333791176,1722507043780,-4839.87,0.00013798,2]
[333791177,1722507043790,-4839.87,0.00013798,2]
[333791178,1722507043799,-4839.87,0.00013798,2]
[333791179,1722507043809,-201.15881,0.00013798,2]
[333791180,1722507043818,-201.15881,0.00013798,2]
[333791181,1722507043827,-438.655399,0.00013798,2]
[333791182,1722507043837,-438.655399,0.00013798,2]
[333791183,1722507043846,-151.0,0.00013798,2]
[333791184,1722507043856,-814.403794,0.00013798,2]
[333791185,1722507043867,-814.403794,0.00013798,2]
[333791186,1722507043876,-341.254348,0.00013798,2]
[333791187,1722507043886,-341.254348,0.00013798,2]
[333791188,1722507043895,-151.0,0.00013798,2]
[333791189,1722507043905,-155.988796,0.00013798,2]
[333791190,1722507043914,-155.988796,0.00013798,2]
[333791191,1722507043924,-151.0,0.00013799,2]
[333791192,1722507043935,-151.0,0.00013799,2]
[333791193,1722507043947,-151.0,0.00013799,2]
[333791194,1722507043957,-151.0,0.00013799,2]
[333791195,1722507043967,-151.0,0.00013799,2]
[333791196,1722507043977,-292.316247,0.00013799,2]
[333791197,1722507043987,-2382.1725,0.00013799,2]
[333791198,1722507043997,-2382.1725,0.00013799,2]
[333791199,1722507044006,-2382.1725,0.00013799,2]
[333791200,1722507044019,-2382.1725,0.00013799,2]
[333791201,1722507044028,-151.0,0.00013799,2]
[333791202,1722507044038,-151.0,0.00013799,2]
[333791203,1722507044047,-151.0,0.00013799,2]
[333791204,1722507044057,-151.0,0.00013799,2]
[333791205,1722507044067,-200.0,0.000138,2]
[333791206,1722507044078,-151.0,0.00013808,2]
[333791207,1722507044090,-232.107761,0.00013808,2]
[333791208,1722507044102,-159.142725,0.00013808,2]
[333791209,1722507044112,-159.142725,0.00013808,2]
[333791210,1722507044121,-4839.87,0.00013808,2]
[333791211,1722507044130,-4839.87,0.00013808,2]
[333791212,1722507044139,-4839.87,0.00013808,2]
[333791213,1722507044149,-201.15881,0.00013808,2]
[333791214,1722507044159,-201.15881,0.00013808,2]
[333791215,1722507044168,-438.655399,0.00013808,2]
[333791216,1722507044177,-438.655399,0.00013808,2]
[333791217,1722507044187,-151.0,0.00013808,2]
[333791218,1722507044197,-814.403794,0.00013808,2]
[333791219,1722507044206,-814.403794,0.00013808,2]
[333791220,1722507044216,-341.254348,0.00013808,2]
[333791221,1722507044225,-341.254348,0.00013808,2]
[333791222,1722507044234,-151.0,0.00013808,2]
[333791223,1722507044243,-155.988796,0.00013808,2]
[333791224,1722507044253,-155.9888,0.00013808,2]
[333791225,1722507044262,-2046.54,0.00013808,2]
[333791226,1722507044272,-151.0,0.00013809,2]
[333791227,1722507044281,-151.0,0.00013809,2]
[333791228,1722507044293,-2382.1725,0.00013809,2]
[333791229,1722507044303,-2382.1725,0.00013809,2]
[333791230,1722507044313,-4839.87,0.00013828,2]
[333791231,1722507044323,-200.0,0.00013845,2]
[333791232,1722507044334,-200.0,0.00013845,2]
[333791233,1722507044344,-500.0,0.00013848,2]
[333791234,1722507044356,-200.12635228,0.0001387,2]
[333791235,1722507044366,-151.0,0.00013899,2]
[333791236,1722507044375,-236.595444,0.00013899,2]
[333791237,1722507044384,-151.0,0.00013899,2]
[333791238,1722507044394,-159.142725,0.00013899,2]
[333791239,1722507044403,-159.142725,0.00013899,2]
[333791240,1722507044414,-201.15881,0.00013899,2]
[333791241,1722507044423,-201.158804,0.00013899,2]
[333791242,1722507044433,-438.655399,0.00013899,2]
[333791243,1722507044442,-438.655393,0.00013899,2]
[333791244,1722507044451,-2046.54,0.00013899,2]
[333791245,1722507044461,-2046.54,0.00013899,2]
[333791246,1722507044470,-2046.54,0.00013899,2]
[333791247,1722507044480,-2046.54,0.00013899,2]
[333791248,1722507044489,-2046.73221122,0.00013899,2]
[333791249,1722507044499,-3000.0,0.000139,30]
[333791250,1722507044508,-151.0,0.000139,2]
[333791251,1722507044518,-151.0,0.000139,2]
[333791252,1722507044527,-2382.1725,0.000139,2]
[333791253,1722507044536,-2382.1725,0.000139,2]
[333791254,1722507044545,-151.0,0.000139,2]
[333791255,1722507044555,-151.0,0.000139,2]
[333791256,1722507044564,-814.403794,0.000139,2]
[333791257,1722507044573,-814.403802,0.000139,2]
[333791258,1722507044582,-341.254348,0.000139,2]
[333791259,1722507044591,-151.0,0.000139,2]
[333791260,1722507044601,-341.254352,0.000139,2]
[333791261,1722507044610,-500.0,0.00013909,2]
[333791262,1722507044619,-4839.87,0.00013909,2]
[333791263,1722507044628,-4839.87,0.00013909,2]
[333791264,1722507044638,-3000.0,0.0001391,30]
[333791265,1722507044647,-1720.19716094,0.0001392,30]
[333791266,1722507044772,-1279.80283906,0.0001392,30]